fUSD/lending_fUSD_20260213
["ID","MTS","AMOUNT","RATE_DAILY","PERIOD"]
[405309058,1770973840477,-291.8477687,0.00015995,2]
[405309060,1770973840487,-262.74959238,0.00016,2]
[405309062,1770973840496,-9999.99,0.00016116,2]
[405309064,1770973840505,-501.86536618,0.00016173,2]
[405309066,1770973840514,-504.64635869,0.00016173,2]
[405309067,1770973840524,-500.0,0.00016173,2]
[405309068,1770973840533,-500.0,0.00016173,2]
[405309069,1770973840542,-523.38790063,0.00016173,2]
[405309070,1770973840551,-500.0,0.00016173,2]
[405309071,1770973840560,-500.0,0.00016173,2]
[405309072,1770973840569,-500.0,0.00016173,2]
[405309073,1770973840578,-560.82560614,0.00016173,2]
[405309074,1770973840587,-500.0,0.00016173,2]
[405309075,1770973840597,-500.0,0.00016173,2]
[405309076,1770973840606,-500.0,0.00016173,2]
[405309077,1770973840615,-163.79829238,0.00016173,2]
[405309078,1770973840624,-500.0,0.00016173,2]
[405309079,1770973840633,-500.0,0.00016173,2]
[405309080,1770973840643,-162.32234067,0.00016173,2]
[405309081,1770973840653,-500.0,0.00016173,2]
[405309082,1770973840662,-500.0,0.00016173,2]
[405309083,1770973840671,-500.0,0.00016173,2]
[405309084,1770973840680,-160.21755822,0.00016173,2]
[405309085,1770973840689,-501.3619325,0.00016173,2]
[405309086,1770973840699,-502.97943379,0.00016173,2]
[405309087,1770973840707,-502.19144645,0.00016173,2]
[405309088,1770973840716,-285.08602692,0.00016173,2]
[405309089,1770973840726,-500.0,0.00016173,2]
[405309090,1770973840735,-500.0,0.00016173,2]
[405309091,1770973840745,-500.0,0.00016173,2]
[405309092,1770973840754,-161.87999036,0.00016173,2]
[405309093,1770973840763,-161.79452936,0.00016173,2]
[405309094,1770973840772,-502.15975128,0.00016173,2]
[405309095,1770973840782,-501.45759007,0.00016173,2]
[405309096,1770973840791,-500.0,0.00016173,2]
[405309097,1770973840801,-502.68727614,0.00016173,2]
[405309098,1770973840810,-500.0,0.00016173,2]
[405309099,1770973840819,-502.51804704,0.00016173,2]
[405309100,1770973840827,-500.0,0.00016173,2]
[405309101,1770973840836,-500.0,0.00016173,2]
[405309102,1770973840846,-500.0,0.00016173,2]
[405309103,1770973840855,-501.43225284,0.00016173,2]
[405309104,1770973840864,-500.0,0.00016173,2]
[405309105,1770973840873,-500.71447889,0.00016173,2]
[405309106,1770973840882,-500.9662317,0.00016173,2]
[405309107,1770973840891,-160.36449504,0.00016173,2]
[405309108,1770973840900,-160.94815484,0.00016173,2]
[405309109,1770973840909,-170.11819774,0.00016173,2]
[405309110,1770973840918,-500.0,0.00016173,2]
[405309111,1770973840927,-514.01890728,0.00016173,2]
[405309112,1770973840936,-567.62074081,0.00016173,2]
[405309113,1770973840946,-441.54821717,0.00016173,2]
[405309114,1770973840955,-500.0,0.00016173,2]
[405309115,1770973840964,-501.58203416,0.00016173,2]
[405309116,1770973840973,-500.0,0.00016173,2]
[405309117,1770973840982,-500.0,0.00016173,2]
[405309118,1770973840991,-185.89561959,0.00016173,2]
[405309119,1770973841000,-515.01775442,0.00016173,2]
[405309120,1770973841009,-559.21826775,0.00016173,2]
[405309121,1770973841018,-251.75,0.00016256,2]
[405309122,1770973841027,-366.28,0.00016256,2]
[405309123,1770973841036,-500.0,0.00016308,2]
[405309124,1770973841045,-627.0,0.00016308,2]
[405309125,1770973841055,-191.54707016,0.00016321,2]
[405309126,1770973841064,-2694.92260426,0.00016412,2]
[405309127,1770973841074,-266.54635509,0.00016412,2]
[405309128,1770973841083,-3000.0,0.00016412,2]
[405309129,1770973841092,-160.10510946,0.00016429,2]
[405309130,1770973841102,-151.02975848,0.00016438,2]
[405309131,1770973841112,-402.31,0.00016452,2]
[405309132,1770973841124,-1000.0,0.00016721,2]
[405309133,1770973841134,-651.60051968,0.00016721,2]
[405309134,1770973841143,-1000.0,0.00016721,2]
[405309135,1770973841152,-1000.0,0.00016721,2]
[405309136,1770973841163,-502.01410517,0.00016721,2]
[405309137,1770973841172,-1000.0,0.00016721,2]
[405309138,1770973841182,-1000.0,0.00016721,2]
[405309139,1770973841193,-1000.0,0.00016721,2]
[405309140,1770973841203,-516.39838794,0.00016721,2]
[405309141,1770973841213,-1000.0,0.00016721,2]
[405309142,1770973841222,-1095.58692037,0.00016721,2]
[405309143,1770973841231,-1000.0,0.00016721,2]
[405309144,1770973841240,-1000.0,0.00016721,2]
[405309145,1770973841250,-1000.0,0.00016721,2]
[405309146,1770973841259,-1000.0,0.00016721,2]
[405309147,1770973841269,-1000.0,0.00016721,2]
[405309148,1770973841279,-1002.46426974,0.00016721,2]
[405309149,1770973841288,-1000.0,0.00016721,2]
[405309150,1770973841298,-1002.86775924,0.00016721,2]
[405309151,1770973841308,-1000.0,0.00016721,2]
[405309152,1770973841318,-1000.0,0.00016721,2]
[405309153,1770973841328,-1005.49608217,0.00016721,2]
[405309154,1770973841337,-1000.0,0.00016721,2]
[405309155,1770973841346,-1000.0,0.00016721,2]
[405309156,1770973841356,-1000.0,0.00016721,2]
[405309157,1770973841366,-1000.0,0.00016721,2]
[405309158,1770973841375,-3500.0,0.0001696,2]
[405309159,1770973841385,-300.0,0.00017,2]
[405309160,1770973841395,-500.0,0.0001713,2]
[405309161,1770973841405,-251.0,0.0001713,2]
[405309162,1770973841414,-72570.33881666,0.00017184,2]
[405309163,1770973841423,-501.69367829,0.00017268,2]
[405309164,1770973841432,-1500.0,0.00017268,2]
[405309165,1770973841441,-1500.0,0.00017268,2]
[405309166,1770973841451,-1500.0,0.00017268,2]
[405309167,1770973841460,-504.47861685,0.00017268,2]
[405309168,1770973841470,-1492.57355052,0.00017268,2]
[405309169,1770973841480,-1441.31512471,0.00017268,2]
[405309170,1770973841489,-395.07222913,0.00017268,2]
[405309171,1770973841498,-1511.15532906,0.00017268,2]
[405309172,1770973841508,-1500.0,0.00017268,2]
[405309173,1770973841518,-1000.0,0.00017268,2]
[405309174,1770973841527,-1500.0,0.00017268,2]
[405309175,1770973841536,-1385.22876049,0.00017268,2]
[405309176,1770973841546,-594.1463812,0.00017268,2]
[405309177,1770973841556,-1189.48508618,0.00017268,2]
[405309178,1770973841565,-800.97860377,0.00017268,2]
[405309179,1770973841575,-501.93985901,0.00017268,2]
[405309180,1770973841585,-1030.73212688,0.00017268,2]
[405309181,1770973841594,-1005.92637205,0.00017268,2]
[405309182,1770973841604,-947.61473378,0.00017508,2]
[405309183,1770973841613,-150.0,0.00017684,2]
[405309184,1770973841622,-200.0,0.00017684,2]
[405309185,1770973841631,-218.82,0.00017684,2]
[405309186,1770973841640,-231.397,0.00017684,2]
[405309187,1770973841649,-265.155,0.00017684,2]
[405309188,1770973841658,-500.0,0.00017808,2]
[405309189,1770973841667,-800.0,0.00017808,2]
[405309190,1770973841677,-591.31,0.00017816,2]
[405309191,1770973841686,-1197.3,0.00017816,2]
[405309192,1770973841695,-1137.19,0.00017816,2]
[405309193,1770973841705,-1410.82,0.00017816,2]
[405309194,1770973841714,-500.0,0.00017816,2]
[405309195,1770973841723,-1438.79,0.00017816,2]
[405309196,1770973841732,-2000.0,0.00017816,2]
[405309197,1770973841741,-2000.0,0.00017816,2]
[405309198,1770973841751,-2000.0,0.00017816,2]
[405309199,1770973841760,-939.8305345,0.00017816,2]
[405309200,1770973841769,-2003.05497251,0.00017816,2]
[405309201,1770973841778,-616.8,0.00017819,2]
[405309202,1770973841787,-159.709,0.0001782,2]
[405309203,1770973841796,-250.0,0.0001782,2]
[405309204,1770973841806,-192.031,0.0001782,2]
[405309205,1770973841815,-213.191,0.0001782,2]
[405309206,1770973841823,-250.0,0.0001782,2]
[405309207,1770973841832,-233.755,0.0001782,2]
[405309208,1770973841842,-174.0,0.0001782,2]
[405309209,1770973841852,-162.602,0.0001782,2]
[405309210,1770973841861,-3531.919,0.0001782,2]
[405309211,1770973841870,-623.675,0.0001782,2]
[405309212,1770973841879,-1288.0,0.0001782,2]
[405309213,1770973841888,-150.223,0.0001782,2]
[405309214,1770973841898,-1301.116,0.0001782,2]
[405309215,1770973841907,-925.399,0.0001782,2]
[405309216,1770973841917,-1216.86,0.0001782,2]
[405309217,1770973841926,-5968.0,0.0001782,2]
[405309218,1770973841936,-2450.0,0.0001782,2]
[405309219,1770973841945,-500.0,0.00017863,2]
[405309220,1770973841955,-800.0,0.000179,6]
[405309221,1770973841966,-500.0,0.00017918,2]
[405309222,1770973841975,-500.49095607,0.00017959,3]
[405309223,1770973841985,-500.0,0.00017972,2]
[405309224,1770973841994,-500.0,0.00018027,2]
[405309225,1770973842003,-500.0,0.00018082,2]
[405309226,1770973842013,-200.0,0.00018128,2]
[405309227,1770973842022,-500.0,0.00018137,2]
[405309228,1770973842031,-500.0,0.00018192,2]
[405309229,1770973842040,-500.0,0.00018246,2]
[405309230,1770973842059,-500.0,0.00018301,2]
[405309231,1770973842070,-928.82797361,0.00018354,2]
[405309232,1770973842079,-500.0,0.00018356,2]
[405309233,1770973842089,-1504.4856347,0.00018364,2]
[405309234,1770973842098,-1787.66016397,0.00018364,2]
[405309235,1770973842107,-960.3517219,0.00018364,2]
[405309236,1770973842120,-45785.51588125,0.00018407,2]
[405309237,1770973842129,-500.0,0.00018411,2]
[405309238,1770973842138,-500.0,0.00018466,2]
[405309239,1770973842147,-160.10510946,0.00018483,2]
[405309240,1770973842158,-500.0,0.0001852,2]
[405309241,1770973842168,-500.0,0.00018575,2]
[405309242,1770973842177,-500.0,0.0001863,2]
[405309243,1770973842187,-150.0,0.0001863,2]
[405309244,1770973842197,-500.0,0.00018685,2]
[405309245,1770973842207,-500.0,0.0001874,2]
[405309246,1770973842216,-500.0,0.00018794,2]
[405309247,1770973842226,-285.29097381,0.00018849,2]
[405309248,1770973842235,-801.45328236,0.00018904,2]
[405309249,1770973842245,-350.0,0.00019,2]
[405309250,1770973842255,-500.0,0.00019178,2]
[405309251,1770973842265,-150.0,0.00019178,2]
[405309252,1770973842275,-250.0,0.00019178,2]
[405309253,1770973842286,-150.0,0.00019178,2]
[405309254,1770973842297,-500.0,0.00019233,2]
[405309255,1770973842307,-500.33745855,0.00019288,2]
[405309256,1770973842317,-203.49,0.00019383,2]
[405309257,1770973842327,-167.83,0.00019515,2]
[405309258,1770973842337,-500.0,0.00019726,2]
[405309259,1770973842347,-268.21,0.00019726,2]
[405309260,1770973842356,-250.0,0.00019726,2]
[405309261,1770973842365,-350.0,0.00019726,2]
[405309262,1770973842375,-250.0,0.00019726,2]
[405309263,1770973842386,-500.0,0.00019781,2]
[405309264,1770973842395,-500.0,0.00019836,2]
[405309265,1770973842406,-203.49,0.00019862,2]
[405309266,1770973842415,-500.0,0.0001989,2]
[405309267,1770973842428,-632.80663538,0.00019945,2]
[405309268,1770973842438,-500.0,0.00019999,2]
[405309269,1770973842448,-500.0,0.00019999,2]
[405309270,1770973842457,-500.0,0.00019999,2]
[405309271,1770973842466,-500.0,0.00019999,2]
[405309272,1770973842475,-500.0,0.00019999,2]
[405309273,1770973842485,-500.0,0.00019999,2]
[405309274,1770973842495,-500.0,0.00019999,2]
[405309275,1770973842505,-500.0,0.00019999,2]
[405309276,1770973842514,-500.0,0.00019999,2]
[405309277,1770973842524,-500.0,0.00019999,2]
[405309278,1770973842533,-500.0,0.00019999,2]
[405309279,1770973842542,-500.0,0.00019999,2]
[405309280,1770973842553,-500.0,0.00019999,2]
[405309281,1770973842562,-500.0,0.00019999,2]
[405309282,1770973842572,-500.0,0.00019999,2]
[405309283,1770973842582,-500.0,0.00019999,2]
[405309284,1770973842591,-500.0,0.00019999,2]
[405309285,1770973842601,-500.0,0.00019999,2]
[405309286,1770973842611,-500.0,0.00019999,2]
[405309287,1770973842622,-500.0,0.00019999,2]
[405309288,1770973842635,-500.0,0.00019999,2]
[405309289,1770973842645,-500.0,0.00019999,2]
[405309290,1770973842655,-500.0,0.00019999,2]
[405309291,1770973842665,-500.0,0.00019999,2]
[405309292,1770973842675,-390.10936759,0.00019999,2]
[405309293,1770973842686,-500.0,0.00019999,2]
[405309294,1770973842697,-500.0,0.00019999,2]
[405309295,1770973842707,-500.0,0.00019999,2]
[405309296,1770973842717,-500.0,0.00019999,2]
[405309297,1770973842727,-500.0,0.00019999,2]
[405309298,1770973842737,-500.0,0.00019999,2]
[405309299,1770973842747,-500.0,0.00019999,2]
[405309300,1770973842757,-500.0,0.00019999,2]
[405309301,1770973842767,-500.0,0.00019999,2]
[405309302,1770973842777,-500.0,0.00019999,2]
[405309303,1770973842786,-500.0,0.00019999,2]
[405309304,1770973842797,-500.0,0.00019999,2]
[405309305,1770973842807,-150.0,0.00019999,2]
[405309306,1770973842816,-500.0,0.00019999,2]
[405309307,1770973842829,-500.0,0.00019999,2]
[405309308,1770973842839,-500.0,0.00019999,2]
[405309309,1770973842848,-167.83,0.00020125,2]
[405309310,1770973842858,-335.56301619,0.00020274,2]
[405309311,1770973842869,-450.0,0.00020274,2]
[405309312,1770973842879,-350.0,0.00020274,2]
[405309313,1770973842889,-268.21,0.00020274,2]
[405309314,1770973842899,-152.97,0.000203,7]
[405309315,1770973842909,-203.49,0.00020341,2]
[405309316,1770973842919,-160.10510946,0.00020537,2]
[405309317,1770973842929,-21574.56,0.00020548,2]
[405309318,1770973842938,-151.0,0.00020548,2]
[405309319,1770973842948,-257.55811756,0.00020603,2]
[405309320,1770973842958,-150.0,0.00020684,2]
[405309321,1770973842968,-150.0,0.00020684,2]
[405309322,1770973842978,-150.0,0.00020684,2]
[405309323,1770973842988,-150.0,0.00020684,2]
[405309324,1770973842999,-167.83,0.00020736,2]
[405309325,1770973843009,-150.0,0.0002082,2]
[405309326,1770973843023,-150.0,0.0002082,2]
[405309327,1770973843034,-150.0,0.0002082,2]
[405309328,1770973843044,-150.0,0.0002082,2]
[405309329,1770973843054,-150.0,0.0002082,2]
[405309330,1770973843064,-3488.0,0.0002082,2]
[405309331,1770973843074,-617.0,0.0002082,2]
[405309332,1770973843084,-1288.0,0.0002082,2]
[405309333,1770973843094,-150.0,0.0002082,2]
[405309334,1770973843103,-1274.0,0.0002082,2]
[405309335,1770973843115,-918.0,0.0002082,2]
[405309336,1770973843127,-1208.0,0.0002082,2]
[405309337,1770973843137,-5968.0,0.0002082,2]
[405309338,1770973843148,-2450.0,0.0002082,2]
[405309339,1770973843159,-550.0,0.00020822,2]
[405309340,1770973843169,-450.0,0.00020822,2]
[405309341,1770973843179,-400.0,0.00021,2]
[405309342,1770973843190,-72570.33881666,0.00021043,2]
[405309343,1770973843200,-203.02698614,0.0002137,2]
[405309344,1770973843209,-550.0,0.0002137,2]
[405309345,1770973843223,-204.72,0.00021907,2]
[405309346,1770973843233,-2000.0,0.00021917,2]
[405309347,1770973843244,-552.06741177,0.00021918,2]
[405309348,1770973843254,-500.0,0.00021918,2]
[405309349,1770973843264,-500.0,0.00021918,2]
[405309350,1770973843275,-500.0,0.00021918,2]
[405309351,1770973843285,-287.56653113,0.00021918,2]
[405309352,1770973843295,-500.0,0.00021918,2]
[405309353,1770973843306,-500.0,0.00021918,2]
[405309354,1770973843316,-500.0,0.00021918,2]
[405309355,1770973843326,-500.0,0.00021973,2]
[405309356,1770973843337,-791.07225386,0.00021982,2]
[405309357,1770973843347,-722.32,0.00021999,2]
[405309358,1770973843357,-606.16370174,0.00021999,2]
[405309359,1770973843367,-981.7,0.00021999,2]
[405309360,1770973843377,-500.0,0.00021999,2]
[405309361,1770973843387,-500.0,0.00021999,2]
[405309362,1770973843397,-691.13,0.00021999,2]
[405309363,1770973843407,-615.27,0.00021999,2]
[405309364,1770973843419,-500.0,0.00021999,2]
[405309365,1770973843430,-529.45,0.00021999,2]
[405309366,1770973843440,-500.0,0.00021999,2]
[405309367,1770973843450,-2421.331562,0.00022,2]
[405309368,1770973843461,-1048.59,0.00022,7]
[405309369,1770973843471,-500.0,0.00022028,2]
[405309370,1770973843481,-500.0,0.00022082,2]
[405309371,1770973843491,-45785.51588125,0.00022091,2]
[405309372,1770973843501,-500.0,0.00022137,2]
[405309373,1770973843511,-500.0,0.00022192,2]
[405309374,1770973843521,-500.0,0.00022247,2]
[405309375,1770973843531,-500.0,0.00022302,2]
[405309376,1770973843541,-390.83009148,0.00022356,2]
[405309377,1770973843551,-11030.56,0.00022466,2]
[405309378,1770973843561,-160.10510946,0.00022591,2]
[405309379,1770973843571,-458.92,0.000228,14]
[405309380,1770973843581,-450.0,0.00023,2]
[405309382,1770973843591,-160.0,0.00023,2]
[405309383,1770973843601,-150.0,0.00023684,2]
[405309384,1770973843611,-150.0,0.00023684,2]
[405309385,1770973843621,-150.0,0.00023684,2]
[405309386,1770973843632,-150.0,0.00023684,2]
[405309387,1770973843642,-616.8,0.00023819,2]
[405309388,1770973843652,-150.0,0.0002382,2]
[405309390,1770973843662,-150.0,0.0002382,2]
[405309392,1770973843672,-150.0,0.0002382,2]
[405309394,1770973843682,-150.0,0.0002382,2]
[405309396,1770973843690,-150.0,0.0002382,2]
[405309397,1770973843700,-3488.0,0.0002382,2]
[405309399,1770973843710,-617.0,0.0002382,2]
[405309400,1770973843720,-1288.0,0.0002382,2]
[405309401,1770973843730,-150.0,0.0002382,2]
[405309402,1770973843741,-1274.0,0.0002382,2]
[405309404,1770973843751,-918.0,0.0002382,2]
[405309406,1770973843761,-1208.0,0.0002382,2]
[405309407,1770973843772,-5968.0,0.0002382,2]
[405309408,1770973843783,-2450.0,0.0002382,2]
[405309409,1770973843793,-160.10510947,0.00024644,2]
[405309410,1770973843812,-2000.0,0.00024657,12]
[405309411,1770973843823,-1254.26,0.00024658,2]
[405309412,1770973843833,-150.0,0.00024658,2]
[405309413,1770973843843,-72570.33881666,0.00024902,2]
[405309414,1770973843854,-1000.0,0.00024944,2]
[405309415,1770973843864,-500.0,0.00025,2]
[405309416,1770973843874,-278.64031082,0.00025391,2]
[405309417,1770973843884,-256.99686279,0.00025391,2]
[405309418,1770973843894,-45785.51588125,0.00025775,2]
[405309419,1770973843904,-591.31,0.00026499,2]
[405309420,1770973843914,-1197.3,0.00026499,2]
[405309421,1770973843924,-1137.19,0.00026499,2]
[405309422,1770973843935,-1410.82,0.00026499,2]
[405309423,1770973843945,-500.0,0.00026499,2]
[405309424,1770973843955,-1438.79,0.00026499,2]
[405309425,1770973843966,-1048.59,0.000265,7]
[405309426,1770973843976,-150.0,0.00026684,2]
[405309427,1770973843986,-150.0,0.0002682,2]
[405309428,1770973843996,-150.0,0.0002682,2]
[405309429,1770973844006,-150.0,0.0002682,2]
[405309430,1770973844016,-150.0,0.0002682,2]
[405309431,1770973844027,-3488.0,0.0002682,2]
[405309432,1770973844037,-617.0,0.0002682,2]
[405309433,1770973844047,-1274.0,0.0002682,2]
[405309434,1770973844057,-918.0,0.0002682,2]
[405309435,1770973844067,-1208.0,0.0002682,2]
[405309436,1770973844076,-5180.775,0.0002682,2]
[405309437,1770973844087,-2450.0,0.0002682,2]
[405309438,1770973844097,-550.0,0.00027,2]
[405309439,1770973844107,-150.0,0.00027369,2]
[405309440,1770973844121,-419.210602,0.0002737,2]
[405309441,1770973844130,-616.8,0.00027396,2]
[405309442,1770973844140,-2006.79775427,0.00027397,22]
[405309443,1770973844151,-160.48734455,0.00027397,2]
[405309444,1770973844162,-500.0,0.00027397,120]
[405309445,1770973844176,-1254.26,0.00027397,2]
[405309446,1770973844188,-211.64486085,0.00027397,4]
[405309447,1770973844198,-300.0,0.00027397,5]
[405309448,1770973844209,-150.0,0.00027397,5]
[405309449,1770973844219,-722.32,0.00027699,120]
[405309450,1770973844230,-981.7,0.00027699,30]
[405309451,1770973844240,-500.0,0.00027699,120]
[405309452,1770973844251,-500.0,0.00027699,30]
[405309453,1770973844262,-691.13,0.00027699,30]
[405309454,1770973844272,-615.27,0.00027699,120]
[405309455,1770973844283,-500.0,0.00027699,120]
[405309456,1770973844293,-529.45,0.00027699,120]
[405309457,1770973844303,-500.0,0.00027699,18]
[405309458,1770973844314,-600.0,0.00027945,5]
[405309459,1770973844324,-250.0,0.00027945,5]
[405309460,1770973844335,-1048.59,0.000283,7]
[405309461,1770973844345,-1011.01782723,0.00028493,5]
[405309462,1770973844356,-353.14332951,0.00028493,5]
[405309463,1770973844366,-382.43,0.000285,14]
[405309464,1770973844376,-72570.33881666,0.00028762,2]
[405309465,1770973844387,-495.03780778,0.00028767,2]
[405309466,1770973844397,-398.53,0.00028794,2]
[405309467,1770973844408,-1300.0,0.000289,10]
[405309468,1770973844418,-616.8,0.00028918,15]
[405309469,1770973844430,-8732.72,0.00028919,2]
[405309470,1770973844440,-600.0,0.00029,2]
[405309471,1770973844450,-500.0,0.00029205,2]
[405309472,1770973844460,-472.90898588,0.00029214,3]
[405309473,1770973844470,-1087.42936172,0.00029234,3]
[405309474,1770973844481,-45785.51588125,0.00029459,2]
[405309475,1770973844491,-150.0,0.0002982,2]
[405309476,1770973844501,-3488.0,0.0002982,2]
[405309477,1770973844513,-617.0,0.0002982,2]
[405309478,1770973844523,-1274.0,0.0002982,2]
[405309479,1770973844533,-918.0,0.0002982,2]
[405309480,1770973844543,-1208.0,0.0002982,2]
[405309481,1770973844557,-2450.0,0.0002982,2]
[405309482,1770973844568,-13390.71,0.00029917,2]
[405309483,1770973844578,-3094.0,0.00029973,2]
[405309484,1770973844589,-150.0,0.0003,2]
[405309485,1770973844599,-500.0,0.00030137,120]
[405309486,1770973844610,-1254.26,0.00030137,2]
[405309487,1770973844620,-155.01,0.00030411,120]
[405309488,1770973844630,-1000.0,0.00030462,7]
[405309489,1770973844641,-150.0,0.00030496,2]
[405309490,1770973844651,-160.12,0.000305,30]
[405309491,1770973844662,-500.0,0.00030603,2]
[405309492,1770973844672,-152.0,0.00030643,3]
[405309493,1770973844682,-1881.0,0.00030736,7]
[405309494,1770973844692,-11696.52085509,0.00030892,2]
[405309495,1770973844941,-974.42914491,0.00030892,2]
[405309496,1770973844951,-325.38,0.00030901,2]
[405309497,1770973844961,-650.0,0.00031,2]
[405309498,1770973844971,-1000.0,0.0003101,7]
[405309499,1770973844981,-300.131659,0.0003108,50]
[405309500,1770973844991,-591.31,0.00031173,120]
[405309501,1770973845002,-1197.3,0.00031173,120]
[405309502,1770973845012,-1137.19,0.00031173,120]
[405309503,1770973845022,-1410.82,0.00031173,120]
[405309504,1770973845033,-191.66731724,0.00031173,45]
[405309505,1770973845044,-1438.79,0.00031173,120]
[405309506,1770973845259,-3354.50490408,0.00031173,2]
[405309507,1770973845278,-1048.59,0.000312,7]
[405309508,1770973845287,-152.0,0.00031267,4]
[405309509,1770973845297,-1999.0,0.00031284,7]
[405309510,1770973845307,-152.0,0.00031892,5]
[405309511,1770973845317,-683.0,0.00032,2]
[405309512,1770973845327,-180.11038915,0.00032144,8]
[405309513,1770973845337,-722.32,0.0003225,120]
[405309514,1770973845346,-981.7,0.0003225,30]
[405309515,1770973845356,-500.0,0.0003225,120]
[405309516,1770973845366,-500.0,0.0003225,30]
[405309517,1770973845375,-691.13,0.0003225,30]
[405309518,1770973845385,-615.27,0.0003225,120]
[405309519,1770973845394,-500.0,0.0003225,120]
[405309520,1770973845404,-529.45,0.0003225,120]
[405309521,1770973845414,-500.0,0.0003225,18]
[405309522,1770973845424,-1484.596,0.00032344,32]
[405309523,1770973845433,-152.0,0.00032516,6]
[405309524,1770973845443,-72570.33881666,0.00032621,2]
[405309525,1770973845453,-600.499113,0.0003266,120]
[405309526,1770973845463,-42929.0,0.000327,2]
[405309527,1770973845472,-589.5,0.00032761,30]
[405309528,1770973845481,-728.0,0.00032761,30]
[405309529,1770973845491,-3488.0,0.0003282,2]
[405309530,1770973845500,-617.0,0.0003282,2]
[405309531,1770973845509,-1274.0,0.0003282,2]
[405309532,1770973845518,-918.0,0.0003282,2]
[405309533,1770973845527,-1208.0,0.0003282,2]
[405309534,1770973845538,-2450.0,0.0003282,2]
[405309535,1770973845547,-419.210602,0.00032849,30]
[405309536,1770973845557,-516.95013076,0.00032876,30]
[405309537,1770973845567,-500.0,0.00032877,120]
[405309538,1770973845581,-345.43,0.00032877,2]
[405309539,1770973845592,-1254.26,0.00032877,2]
[405309540,1770973845602,-500.0,0.00032877,2]
[405309541,1770973845613,-500.0,0.00032877,2]
[405309542,1770973845624,-500.0,0.00032877,2]
[405309543,1770973845633,-500.0,0.00032877,2]
[405309544,1770973845643,-500.0,0.00032877,2]
[405309545,1770973845654,-365.85048482,0.00032877,2]
[405309546,1770973845667,-1572.86,0.000329,14]
[405309547,1770973845676,-639.29,0.000329,14]
[405309548,1770973845687,-542.595972,0.00033,8]
[405309549,1770973845696,-700.0,0.00033,2]
[405309550,1770973845707,-616.8,0.00033076,15]
[405309551,1770973845716,-616.8,0.00033076,15]
[405309552,1770973845727,-616.8,0.00033076,15]
[405309553,1770973845739,-616.8,0.00033076,15]
[405309554,1770973845748,-616.90997361,0.00033076,15]
[405309555,1770973845758,-791.07225384,0.0003309,2]
[405309556,1770973845772,-152.0,0.0003314,7]
[405309557,1770973845784,-32114.03360852,0.00033143,2]
[405309558,1770973845796,-13671.48227273,0.00033143,2]
[405309559,1770973845806,-300.0,0.00033387,2]
[405309560,1770973845816,-5531.0,0.000334,3]
[405309561,1770973845826,-11030.56,0.00033699,2]
[405309562,1770973845835,-152.0,0.00033765,8]
[405309563,1770973845845,-480.01587484,0.00033949,120]
[405309564,1770973845855,-337.84879333,0.00033949,120]
[405309565,1770973845864,-341.0,0.00034,2]
[405309566,1770973845874,-5531.0,0.000341,5]
[405309567,1770973845883,-1000.0,0.00034298,2]
[405309568,1770973845893,-1000.0,0.00034298,2]
[405309569,1770973845902,-1000.0,0.00034298,2]